fUST/lending_fUST_20240214
["ID","MTS","AMOUNT","RATE_DAILY","PERIOD"]
[313971148,1707890973208,-12478.19327869,0.00023634,2]
[313971246,1707891038422,-12421.80672131,0.00023634,2]
[313971249,1707891038436,-166.77805285,0.00024985,2]
[313971251,1707891038446,-730.61606615,0.00025,10]
[313971252,1707891038457,-200.0,0.00025084,2]
[313971255,1707891038466,-125.75399456,0.00025085,2]
[313971256,1707891038476,-73272.1878829,0.00025085,7]
[313971331,1707891041514,-978.65668852,0.00025085,7]
[313971332,1707891041524,-228.03098652,0.00025085,2]
[313971333,1707891041533,-44.49807974,0.00025244,7]
[313971334,1707891041567,-155.50192026,0.00025244,7]
[313971335,1707891041576,-3063.50417358,0.00027,2]
[313971336,1707891041585,-280.0,0.00027768,15]
[313971337,1707891041595,-150.0,0.00027985,2]
[313971338,1707891041604,-1717.67691447,0.00028,2]
[313971339,1707891041613,-763.71166301,0.00028798,5]
[313971340,1707891041622,-1328.47401835,0.00029015,2]
[313971341,1707891041631,-850.50365314,0.00029015,2]
[313971342,1707891041641,-1705.63610591,0.00029015,2]
[313971343,1707891041653,-11492.12374897,0.00029015,2]
[313971344,1707891041663,-379.0,0.00030545,15]
[313971345,1707891041672,-152.84086,0.00030996,2]
[313971346,1707891041681,-151.0,0.00030999,2]
[313971347,1707891041695,-235.53347969,0.00031,4]
[313971348,1707891041704,-6137.30922681,0.00031,2]
[313971349,1707891041713,-1659.95619046,0.00031,2]
[313971363,1707891043325,-288.57936878,0.00031,2]
[313971364,1707891043335,-358.61272348,0.00031889,3]
[313971365,1707891043347,-515.44727652,0.00031889,3]
[313971366,1707891043356,-250.0,0.00031899,2]
[313971367,1707891043366,-500.0,0.00031899,7]
[313971368,1707891043375,-500.0,0.00031899,7]
[313971369,1707891043384,-299.96371436,0.00031899,7]
[313971371,1707891046273,-200.03628564,0.00031899,7]
[313971372,1707891046283,-500.0,0.00031899,7]
[313971374,1707891046292,-332.33016682,0.00031899,7]
[313971395,1707892035135,-296.09763721,0.00021917,2]
[313971396,1707892035156,-154.79876161,0.00021917,2]
[313971397,1707892035178,-652.21228434,0.00021918,2]
[313971398,1707892035197,-590.71886159,0.00021918,2]
[313971399,1707892035217,-344.23535776,0.00021919,2]
[313971422,1707892151470,-261.34804717,0.00021866,2]
[313971423,1707892151489,-185.19097263,0.00021866,2]
[313971424,1707892151510,-1298.72656722,0.00021866,2]
[313971425,1707892151529,-258.12096947,0.00021866,2]
[313971426,1707892151550,-718.86881418,0.00021866,2]
[313971427,1707892151570,-161.69234579,0.00021867,2]
[313971428,1707892151590,-154.79876161,0.00021867,2]
[313971429,1707892151610,-5282.96742262,0.00021867,2]
[313971430,1707892151631,-767.34732362,0.00021868,2]
[313971431,1707892152237,-821.11892902,0.00021868,2]
[313971432,1707892152259,-154.79876161,0.00021868,2]
[313971433,1707892152281,-262.16297165,0.00021869,2]
[313971434,1707892152302,-152.44462016,0.00021875,2]
[313971435,1707892152324,-886.6044747,0.00021947,2]
[313971436,1707892152346,-2317.9438813,0.00022609,2]
[313971437,1707892152367,-1117.64,0.00023623,3]
[313971438,1707892152387,-12849.20118437,0.00023625,2]
[313971439,1707892152408,-4752.55400554,0.00023631,2]
[313971440,1707892152428,-1585.53117165,0.00023632,2]
[313971441,1707892152470,-281.64770435,0.00023632,2]
[313971442,1707892152491,-2160.38706253,0.00023633,2]
[313971601,1707892238505,-454.87508612,0.00023622,2]
[313971602,1707892238515,-81792.94423792,0.00023633,2]
[313971603,1707892238524,-200.0,0.00024124,7]
[313971604,1707892238533,-200.0,0.00026536,15]
[313971605,1707892238543,-150.0,0.00028445,2]
[313971606,1707892238552,-1717.67691447,0.00029014,2]
[313971607,1707892238561,-11567.37692074,0.00029015,2]
[313971608,1707892238570,-965.85061406,0.00030899,4]
[313971609,1707892238579,-175.67510628,0.000309,2]
[313971610,1707892238588,-155.0,0.00031,2]
[313971611,1707892238597,-909.89319671,0.00031,2]
[313971623,1707892241746,-300.79297507,0.00031,2]
[313971624,1707892241813,-843.39375563,0.00031,2]
[313971625,1707892241823,-389.5145169,0.00031889,3]
[313971626,1707892241840,-541.8554831,0.00031889,3]
[313971627,1707892241850,-776.14,0.0003189,3]
[313971628,1707892241860,-3951.65903696,0.00031899,14]
[313971633,1707892243493,-4049.40041452,0.00031899,14]
[313971634,1707892243632,-764.76670726,0.00031899,14]
[313971635,1707892243644,-3894.09717996,0.00031899,14]
[313971636,1707892243656,-1894.49568397,0.00031899,14]
[313971735,1707892895927,10000.0,0.0001728,2]
[313971736,1707892904708,10000.0,0.0001728,2]
[313971737,1707892911852,10000.0,0.0001728,2]
[313971738,1707892919159,10000.0,0.0001728,2]
[313971739,1707892927276,10000.0,0.0001728,2]
[313971740,1707892962412,7320.0,0.0001728,2]
[313971741,1707892982794,19897.93712116,0.0001728,2]
[313971743,1707893254085,-154.78330338,0.00019985,2]
[313971744,1707893254107,-690.67590129,0.00019986,2]
[313971745,1707893254127,-652.21228434,0.00019987,2]
[313971746,1707893254150,-258.12096947,0.00019987,2]
[313971747,1707893254272,-1435.4601253,0.00019987,2]
[313971748,1707893254298,-641.14805949,0.00019988,2]
[313971749,1707893254332,-380.0,0.0002,2]
[313971750,1707893254362,-371.6166163,0.00024731,2]
[313971751,1707893345096,-161.88766472,0.00019887,2]
[313971752,1707893373071,-224.404934,0.00024731,2]
[313971753,1707893374085,-292.200685,0.00024731,2]
[313971785,1707893432803,-2481.2624943,0.00024731,2]
[313971826,1707893440630,-9883.73308841,0.00024731,2]
[313971828,1707893440642,-5502.74440674,0.00024731,2]
[313971854,1707893442132,-6144.03777525,0.00024731,2]
[313971855,1707893442142,-500.71977757,0.0002498,5]
[313971856,1707893442151,-155.27998362,0.00024981,2]
[313971857,1707893442161,-195.65939539,0.00024985,2]
[313971858,1707893442174,-159.62169056,0.00025085,2]
[313971859,1707893442184,-400.75970254,0.00025085,2]
[313971860,1707893442194,-215.7412467,0.00025325,2]
[313971861,1707893442204,-258.12096947,0.00028798,2]
[313971862,1707893442213,-150.0,0.00028799,2]
[313971863,1707893442224,-5000.0,0.00029,5]
[313971864,1707893442234,-58.82201375,0.00029,2]
[313971919,1707893465120,299.999999,0.00019675,2]
[313971921,1707893508830,26.5186513,0.00019675,2]
[313971922,1707893508868,173.4813487,0.00019675,2]
[313971923,1707893522698,172.93463382,0.00019675,2]
[313971924,1707893522720,27.06536618,0.00019675,2]
[313971943,1707894439093,-185.72904856,0.00019551,2]
[313971953,1707894546119,-212.83740127,0.00017504,2]
[313971954,1707894546148,-454.87508612,0.00017505,2]
[313971955,1707894546171,-652.21228434,0.00017506,2]
[313971956,1707894546193,-1360.35861744,0.00019551,5]
[313971957,1707894546214,-258.12096947,0.00019554,2]
[313971958,1707894546236,-154.84515485,0.00019555,2]
[313971959,1707894546257,-162.1545054,0.00019568,2]
[313971960,1707894546404,-155.06235683,0.00019675,2]
[313971961,1707894546428,-367.59872527,0.00019675,2]
[313971966,1707894571081,-154.84515485,0.00017503,2]
[313971967,1707894571101,-1997.19860237,0.00017503,2]
[313971968,1707894571122,-154.84515485,0.00019551,2]
[313971969,1707894571142,-1469.15149365,0.00019551,5]
[313971970,1707894571163,-1311.3517253,0.00019675,2]
[313971971,1707894571190,-5562.53115943,0.00019675,2]
[313971972,1707894571210,-155.0797685,0.00019675,2]
[313971973,1707894571229,-155.6956551,0.00019675,2]
[313971974,1707894571249,-155.01552813,0.0002,2]
[313971975,1707894571275,-285.63188,0.00020639,2]
[313971976,1707894571296,-996.71216345,0.00021,2]
[313971977,1707894571321,-7875.046286,0.00021092,2]
[313971978,1707894571343,-169.7895249,0.00021144,2]
[313971979,1707894571456,-1057.96199,0.00021247,2]
[313971980,1707894571476,-169.057576,0.00021334,2]
[313971981,1707894571497,-200.0,0.00021641,7]
[313971982,1707894571518,-280.0,0.00023806,7]
[313971983,1707894571538,-838.21435802,0.00023999,2]
[313971984,1707894571558,-1833.12108864,0.00024731,2]
[313971985,1707894571581,-1863.65449703,0.00024731,2]
[313971990,1707894593775,155.31940693,0.00019551,2]
[313971993,1707894625917,154.53736068,0.00021901,2]
[313972016,1707894634629,-229.58872527,0.00024731,2]
[313972018,1707894634639,-500.71977757,0.0002498,5]
[313972020,1707894634649,-154.98450155,0.00025,2]
[313972022,1707894634658,-24.80818261,0.00025,2]
[313972024,1707894634671,-130.15094378,0.00025,2]
[313972026,1707894634680,-382.19987544,0.00025,2]
[313972028,1707894634689,-7414.07055846,0.00025,2]
[313972029,1707894634700,-335.8979357,0.00025,2]
[313972030,1707894634709,-319.02385569,0.00025085,2]
[313972031,1707894634717,-501.10362678,0.00025085,2]
[313972032,1707894634726,-207.54727443,0.00025085,2]
[313972033,1707894634735,-391.0,0.00026186,15]
[313972034,1707894634745,-150.0,0.000269,2]
[313972035,1707894634755,-154.84515485,0.00028797,2]
[313972036,1707894634764,-1114.25679546,0.00028798,2]
[313972037,1707894634773,-200.0,0.00028805,15]
[313972038,1707894634782,-213.0,0.00028805,15]
[313972039,1707894634792,-4654.66364871,0.00029,2]
[313972040,1707894634801,-284.31304605,0.00029,2]
[313972041,1707894634811,-5146.9838271,0.00029074,2]
[313972042,1707894634819,-2586.34323556,0.00029074,2]
[313972043,1707894634830,-1323.62678557,0.00029099,2]
[313972044,1707894634840,-5000.0,0.00029125,5]
[313972045,1707894634849,-2080.34524881,0.0002915,2]
[313972046,1707894634858,-154.93944146,0.0003,6]
[313972047,1707894634867,-1000.0,0.00030809,7]
[313972048,1707894634876,-285.63188,0.00030959,2]
[313972049,1707894634884,-193.5109528,0.00031,2]
[313972050,1707894634893,-151.0,0.00031,2]
[313972051,1707894634902,-793.33204133,0.00031,3]
[313972052,1707894634912,-162.15450539,0.00031568,2]
[313972053,1707894634920,-3348.98428779,0.00031678,4]
[313972054,1707894634930,-18699.93963865,0.00031678,4]
[313972055,1707894634939,-4114.49087548,0.000317,10]
[313972099,1707894637851,-300.0,0.00024731,2]
[313972101,1707894637860,-527.475,0.000317,10]
[313972113,1707894637962,-918.97120772,0.000317,10]
[313972116,1707894637972,-179.56109822,0.00031799,2]
[313972119,1707894637981,-385.23303111,0.000318,2]
[313972121,1707894637990,-534.73576278,0.00031889,3]
[313972146,1707894641096,-500.39423722,0.00031889,3]
[313972147,1707894641106,-652.28018661,0.0003189,3]
[313972157,1707894643068,-210.32981339,0.0003189,3]
[313972158,1707894643081,-267.22083483,0.00031898,4]
[313972159,1707894643090,-201.02817286,0.00031898,4]
[313972160,1707894643101,-455.30437091,0.00031898,4]
[313972161,1707894643110,-213.37813493,0.00031898,4]
[313972162,1707894643119,-161.79287228,0.00031899,2]
[313972163,1707894643129,-154.79876161,0.00031899,2]
[313972164,1707894643138,-500.0,0.00031899,7]
[313972165,1707894643148,-217.58507873,0.00031899,7]
[313972166,1707894643157,-73.33067141,0.00031899,7]
[313972180,1707894645924,-426.66932859,0.00031899,7]
[313972181,1707894645935,-500.0,0.00031899,7]
[313972182,1707894645945,-500.0,0.00031899,7]
[313972183,1707894645956,-500.0,0.00031899,7]
[313972184,1707894645966,-490.5888816,0.00031899,7]
[313972185,1707894645977,-583.10359054,0.00031899,7]
[313972186,1707894645987,-500.0,0.00031899,7]
[313972187,1707894645997,-500.0,0.00031899,7]
[313972188,1707894646007,-500.0,0.00031899,7]
[313972189,1707894646017,-500.0,0.00031899,7]
[313972190,1707894646027,-500.0,0.00031899,7]
[313972191,1707894646038,-500.0,0.00031899,7]
[313972192,1707894646048,-500.0,0.00031899,7]
[313972193,1707894646057,-500.0,0.00031899,7]
[313972194,1707894646068,-500.0,0.00031899,7]
[313972195,1707894646077,-500.0,0.00031899,7]
[313972196,1707894646087,-500.0,0.00031899,7]
[313972197,1707894646097,-500.0,0.00031899,7]
[313972198,1707894646107,-500.0,0.00031899,7]
[313972199,1707894646117,-637.94397197,0.00031899,7]
[313972200,1707894646126,-136.47336756,0.00031899,2]
[313972201,1707894646139,-14.52663244,0.00031899,2]
[313972202,1707894646149,-250.0,0.00031899,2]
[313972203,1707894646158,-4525.47336756,0.000319,2]
[313972204,1707894646170,-538.61450309,0.000319,2]
[313972205,1707894657587,248.13766486,0.00022,4]
[313972207,1707894714996,154.84515485,0.00022,2]
[313972208,1707894731002,154.84515485,0.00022,2]
[313972209,1707894748999,191.75853356,0.00022,2]
[313972229,1707895542092,-2057.63177163,0.00022933,2]
[313972231,1707895653087,-200.0,0.00022922,2]
[313972366,1707895838109,-181.73278042,0.00021549,2]
[313972369,1707895838119,-482.06426893,0.0002155,2]
[313972371,1707895838129,-641.14805949,0.0002155,2]
[313972373,1707895838138,-907.30024907,0.0002155,2]
[313972375,1707895838148,-154.84515485,0.00021551,2]
[313972377,1707895838157,-1041.35073906,0.00021551,2]
[313972379,1707895838167,-1949.34405365,0.00021551,2]
[313972381,1707895838176,-563.79476669,0.00021552,2]
[313972383,1707895838186,-296.09763721,0.00021552,2]
[313972384,1707895838195,-500.0,0.00021552,2]
[313972385,1707895838205,-154.84515485,0.00021553,2]
[313972386,1707895838214,-3285.88132478,0.00021553,2]
[313972387,1707895838224,-360.84276657,0.00021554,2]
[313972388,1707895838233,-2367.75983939,0.00021554,2]
[313972389,1707895838242,-996.867854,0.00021555,2]
[313972390,1707895838254,-166.666666,0.00021558,2]
[313972391,1707895838263,-166.666666,0.00022293,2]
[313972392,1707895838273,-294.87723359,0.00022932,2]
[313972393,1707895838282,-874.43358627,0.00022933,2]
[313972394,1707895838292,-24900.0,0.00022988,2]
[313972395,1707895838301,-250.0,0.00023003,2]
[313972396,1707895838310,-166.666666,0.00023027,2]
[313972397,1707895838319,-248.5097114,0.00023348,2]
[313972398,1707895838328,-261.74731,0.00023348,2]
[313972399,1707895838338,-1020.2055942,0.00023535,2]
[313972400,1707895838346,-166.666666,0.00023762,2]
[313972401,1707895838355,-1036.29597135,0.00023924,2]
[313972402,1707895838364,-166.666666,0.00024497,2]
[313972403,1707895838373,-178.96558099,0.00025114,2]
[313972405,1707895838383,-200.0,0.00025294,7]
[313972407,1707895838392,-173.058586,0.00026001,2]
[313972409,1707895838402,-1659.83847091,0.000265,4]
[313972411,1707895838411,-3180.8786292,0.00026571,2]
[313972413,1707895838420,-280.0,0.00027823,15]
[313972426,1707895838523,-9381.71987227,0.00029211,2]
[313972428,1707895838535,-1401.06,0.00029227,3]
[313972430,1707895838545,-2187.52,0.00029227,3]
[313972432,1707895838554,-1822.93,0.00029227,3]
[313972434,1707895838563,-25938.04395261,0.00029237,2]
[313972436,1707895838572,-2065.66228568,0.00029263,2]
[313972438,1707895838581,-5160.49872546,0.00029766,2]
[313972440,1707895838590,-150.0,0.00029799,2]
[313972442,1707895838600,-323.70516193,0.00030302,4]
[313972444,1707895838608,-496.13721026,0.00030303,5]
[313972446,1707895838618,-268.35382982,0.00030524,2]
[313972448,1707895838627,-391.0,0.00030605,15]
[313972450,1707895838636,-224.585,0.00030624,4]
[313972452,1707895838645,-224.585,0.00030624,4]
[313972454,1707895838654,-224.585,0.00030624,4]
[313972456,1707895838665,-224.585,0.00030624,4]
[313972458,1707895838674,-224.585,0.00030624,4]
[313972460,1707895838683,-268.35382981,0.00030868,2]
[313972462,1707895838692,-311.01120453,0.00030921,4]
[313972464,1707895838701,-151.0,0.00030923,2]
[313972466,1707895838711,-17372.58945955,0.00030923,4]
[313972468,1707895838720,-1000.0,0.00031,31]
[313972470,1707895838730,-268.35382981,0.00031212,2]
[313972472,1707895838739,-819.99,0.00031262,4]
[313972474,1707895838752,-819.99,0.00031262,4]
[313972476,1707895838761,-819.991,0.00031262,4]
[313972478,1707895838770,-819.99,0.00031262,4]
[313972480,1707895838781,-819.99,0.00031262,4]
[313972482,1707895838790,-268.35382981,0.00031556,2]
[313972484,1707895838800,-155.56218595,0.00031739,4]
[313972486,1707895838809,-498.95432018,0.00031798,7]
[313972488,1707895838818,-570.88266355,0.00031798,7]
[313972490,1707895838827,-1109.37516461,0.00031799,7]
[313972492,1707895838840,-60871.18286072,0.00031799,7]
[313972494,1707895838849,-250.0,0.00031799,2]
[313972496,1707895838858,-953.61339462,0.000318,2]
[313972499,1707895838870,-535.56920542,0.000318,2]
[313972501,1707895838881,-13575.91032983,0.000318,2]
[313972503,1707895838891,-151.0,0.000318,2]
[313972505,1707895838900,-2784.16444261,0.00031898,4]
[313972507,1707895838909,-163.83847392,0.00031898,4]
[313972509,1707895838918,-324.1965718,0.00031898,4]
[313972511,1707895838927,-1179.32359114,0.00031898,4]
[313972513,1707895838936,-177.7354849,0.00031898,4]
[313972515,1707895838946,-821.00768788,0.00031898,4]
[313972517,1707895838955,-1202.14018038,0.00031898,4]
[313972519,1707895838964,-156.27894218,0.00031898,60]
[313972520,1707895838973,-1963.02059646,0.00031898,4]
[313972522,1707895838983,-324.33055598,0.00031898,4]
[313972524,1707895838992,-154.88270914,0.00031898,4]
[313972527,1707895839004,-154.9042973,0.00031898,4]
[313972529,1707895839014,-282.96837844,0.00031898,7]
[313972531,1707895839024,-336.90288223,0.00031899,4]
[313972533,1707895839033,-300.0,0.00031899,4]
[313972535,1707895839042,-625.39032209,0.00031899,4]
[313972537,1707895839051,-55543.36700058,0.00031899,14]
[313972539,1707895839060,-2091.80746236,0.00031899,4]
[313972541,1707895839069,-151.0,0.00031899,2]
[313972543,1707895839078,-64310.26726579,0.000319,2]
[313972544,1707895839092,-151.0,0.000319,2]
[313972546,1707895839102,-268.35382981,0.000319,2]
[313972548,1707895839111,-166.74522198,0.00031998,7]
[313972551,1707895839121,-493.0904297,0.00031998,4]
[313972552,1707895839132,-3072.77509424,0.00031998,2]
[313972555,1707895839143,-207.36029562,0.00031998,4]
[313972557,1707895839153,-156.85881026,0.00031998,4]
[313972558,1707895839163,-590.52545839,0.00031998,4]
[313972560,1707895839174,-166.54469366,0.00031998,4]
[313972563,1707895839184,-260.81307837,0.00031998,4]
[313972565,1707895839195,-209.73247519,0.00031998,4]
[313972567,1707895839204,-1704.46669207,0.00031998,4]
[313972569,1707895839213,-217.88015111,0.00031998,4]
[313972570,1707895839222,-474.43041835,0.00031998,4]
[313972573,1707895839231,-1584.33737769,0.00031998,2]
[313972575,1707895839240,-2269.90778393,0.00031998,4]
[313972576,1707895839250,-154.91479345,0.00031998,2]
[313972578,1707895839261,-707.94405424,0.00031998,4]
[313972581,1707895839272,-750.34774435,0.00031998,4]
[313972583,1707895839280,-225.16618522,0.00031998,4]
[313972585,1707895839289,-692.15230698,0.00031998,4]
[313972587,1707895839298,-10007.32530336,0.00031998,2]
[313972589,1707895839307,-1268.07859014,0.00031998,4]
[313972591,1707895839316,-178.8087918,0.00031998,4]
[313972593,1707895839326,-154.8915759,0.00031998,4]
[313972594,1707895839335,-151.0,0.00031998,2]
[313972596,1707895839344,-281.64770435,0.00031998,4]
[313972598,1707895839353,-251.12417658,0.00031999,3]
[313972601,1707895839362,-3730.68876773,0.00031999,2]
[313972603,1707895839371,-208.96823606,0.00031999,7]
[313972605,1707895839381,-178.03986757,0.00031999,7]
[313972607,1707895839390,-209.38231707,0.00031999,7]
[313972609,1707895839399,-500.0,0.00031999,7]
[313972610,1707895839408,-500.0,0.00031999,7]
[313972612,1707895839417,-500.0,0.00031999,7]
[313972614,1707895839426,-460.53365631,0.00031999,7]
[313972616,1707895839436,-500.0,0.00031999,7]
[313972618,1707895839445,-500.0,0.00031999,7]
[313972620,1707895839455,-544.4039651,0.00031999,7]
[313972622,1707895839463,-500.0,0.00031999,7]
[313972624,1707895839472,-500.0,0.00031999,7]
[313972626,1707895839482,-500.0,0.00031999,7]
[313972628,1707895839491,-193.48461628,0.00031999,7]
[313972630,1707895839501,-500.0,0.00031999,7]
[313972633,1707895839511,-231.65273919,0.00032,3]
[313972635,1707895839520,-67774.02912575,0.00032,10]
[313972637,1707895839530,-98036.76724829,0.00032,15]
[313972639,1707895839539,-154.95900261,0.00032,4]
[313972640,1707895839549,-1000.0,0.00032,32]
[313972642,1707895839559,-151.0,0.00032,2]
[313972645,1707895839570,-151.0,0.00032,2]
[313972647,1707895839580,-1276.2070171,0.00032458,2]
[313972648,1707895839590,-500.0,0.00032484,2]
[313972650,1707895839600,-40000.0,0.00033,7]
[313972653,1707895839610,-154.90467876,0.00033,4]
[313972654,1707895839618,-1000.0,0.00033,33]
[313972656,1707895839628,-151.0,0.00033,2]
[313972658,1707895839637,-497.0,0.00033,2]
[313972660,1707895839646,-5000.0,0.0003308,7]
[313972662,1707895839655,-497.0,0.00033151,2]
[313972664,1707895839665,-430.59139188,0.00033169,2]
[313972666,1707895839674,-248.97482895,0.00033443,2]
[313972668,1707895839683,-1000.0,0.00034,34]
[313972670,1707895839692,-200.0,0.00034,4]
[313972672,1707895839701,-300.0,0.00034023,2]
[313972674,1707895839710,-248.97482895,0.00034215,2]
[313972676,1707895839719,-497.0,0.00034521,2]
[313972678,1707895839727,-248.97482895,0.00034987,2]
[313972680,1707895839736,-237.884706,0.00034999,2]
[313972682,1707895839746,-42401.55120339,0.00035,15]
[313972684,1707895839756,-1000.0,0.00035,35]
[313972687,1707895839766,-197.0,0.00035,2]
[313972688,1707895839776,-154.0,0.00035,2]
[313972691,1707895839785,-777.0,0.00035147,2]
[313972692,1707895839795,-3278.8503,0.00035305,7]
[313972694,1707895839805,-500.0,0.00035616,2]
[313972696,1707895839816,-248.97482895,0.00035758,2]
[313972699,1707895839825,-294.64032626,0.00036,45]
[313972700,1707895839835,-1000.0,0.00036,36]
[313972703,1707895839845,-11670.50553942,0.0003605,5]
[313972704,1707895839856,-154.2670161,0.00036137,2]
[313972707,1707895839865,-453.0,0.00036149,3]
[313972708,1707895839875,-2036.0,0.000362,14]
[313972710,1707895839884,-499.0,0.00036247,2]
[313972712,1707895839893,-155.0,0.00036247,2]
[313972714,1707895839901,-5000.0,0.000363,14]
[313972716,1707895839911,-306.0,0.00036411,2]
[313972719,1707895839921,-153.3863894,0.00036411,2]
[313972720,1707895839930,-154.112702,0.00036411,2]
[313972723,1707895839939,-403.4297338,0.00036411,2]
[313972725,1707895839949,-6500.44707328,0.000365,2]
[313972726,1707895839958,-248.97482895,0.0003653,2]
[313972728,1707895839967,-12597.18384835,0.000367,2]
[313972883,1707895841461,-681.67875582,0.00021549,2]
[313972885,1707895841470,-154.84515485,0.00021549,2]
[313972887,1707895841480,-1162.32982914,0.00021549,2]
[313972954,1707895843129,-426.1364235,0.00021549,2]
[313972955,1707895843139,-154.84515485,0.00027822,2]
[313972956,1707895843148,-1200.7177109,0.000367,2]
[313972957,1707895843160,-16588.93613713,0.000367,2]
[313972958,1707895843187,-6370.14866366,0.000367,2]
[313972959,1707895843196,-303.224751,0.000367,19]
[313972960,1707895843205,-299.637634,0.000367,12]
[313972961,1707895843215,-79.26445191,0.0003671,2]
[313972980,1707895846071,-75.98263506,0.0003671,2]
[313972981,1707895846081,-363.61298624,0.0003671,4]
[313972982,1707895846093,-168.6358621,0.0003671,4]
[313972984,1707895846107,-20.31679901,0.0003671,2]
[313972989,1707895846381,-778.34355977,0.0003671,2]
[313972990,1707895846392,-849.21145788,0.0003671,2]
[313973005,1707896832091,-258.12096947,0.00025089,2]
[313973006,1707896832112,-641.14805949,0.0002509,2]
[313973007,1707896832132,-427.73373091,0.00025091,2]
[313973008,1707896832153,-3919.2333571,0.00025092,2]
[313973009,1707896832172,-326.8111299,0.00025093,2]
[313973010,1707896832192,-154.84515485,0.00025094,2]
[313973011,1707896832214,-1298.15962473,0.00025135,2]
[313973225,1707897038289,-154.84515485,0.00025134,2]
[313973226,1707897038298,-482.06426893,0.00025134,2]
[313973227,1707897038308,-1041.35073906,0.00025134,2]
[313973228,1707897038318,-142.49117533,0.00025135,2]
[313973229,1707897038327,-479.54631267,0.00025135,2]
[313973230,1707897038337,-18281.40978486,0.00025135,7]
[313973231,1707897038347,-428.24597982,0.00025177,2]
[313973232,1707897038356,-166.666666,0.00025946,2]
[313973233,1707897038366,-248.4034802,0.00025961,2]
[313973235,1707897038375,-9154.752337,0.00026075,2]
[313973237,1707897038384,-1558.4387647,0.000263,2]
[313973239,1707897038393,-166.666666,0.00026653,2]
[313973241,1707897038403,-154.84515485,0.00027,2]
[313973242,1707897038412,-166.666666,0.00027361,2]
[313973243,1707897038421,-200.0,0.00027607,15]
[313973244,1707897038430,-166.666666,0.00028068,2]
[313973245,1707897038440,-166.666666,0.00028776,2]
[313973246,1707897038449,-885.99225136,0.00029307,2]
[313973247,1707897038459,-43304.24624922,0.00029334,2]
[313973248,1707897038468,-4193.44841627,0.00029334,2]
[313973249,1707897038478,-5911.65054414,0.00029373,2]
[313973250,1707897038487,-166.666666,0.00029483,2]
[313973251,1707897038497,-574.69023347,0.00032999,2]
[313973252,1707897038507,-497.0,0.00033,2]
[313973253,1707897038515,-497.0,0.00033151,2]
[313973254,1707897038524,-200.0,0.000339,4]
[313973255,1707897038536,-497.0,0.00034521,2]
[313973256,1707897038545,-5265.76458728,0.00035086,4]
[313973257,1707897038555,-5000.0,0.00035087,7]
[313973258,1707897038565,-5000.0,0.000351,7]
[313973259,1707897038574,-207.84158538,0.00035142,2]
[313973260,1707897038585,-777.0,0.00035242,2]
[313973261,1707897038595,-3278.8503,0.00035533,7]
[313973262,1707897038606,-500.0,0.00035616,2]
[313973263,1707897038615,-154.95900261,0.00035976,4]
[313973264,1707897038626,-19400.78229504,0.00036,45]
[313973265,1707897038636,-2036.0,0.00036,7]
[313973266,1707897038646,-1000.0,0.00036,36]
[313973267,1707897038657,-197.0,0.00036,2]
[313973268,1707897038666,-154.0,0.00036,2]
[313973269,1707897038676,-11670.50553942,0.0003605,5]
[313973270,1707897038687,-499.0,0.00036247,2]
[313973271,1707897038699,-2301.5,0.00036312,5]
[313973272,1707897038708,-153.0,0.00036411,2]
[313973273,1707897038717,-1782.52,0.00036592,3]
[313973274,1707897038727,-2139.02,0.00036602,3]
[313973275,1707897038737,-513.47087967,0.00036612,2]
[313973276,1707897038746,-500.0,0.00036698,15]
[313973277,1707897038755,-500.0,0.00036698,15]
[313973278,1707897038765,-398.72556163,0.00036698,15]
[313973279,1707897038775,-500.0,0.00036698,15]
[313973280,1707897038784,-500.0,0.00036698,15]
[313973281,1707897038794,-500.0,0.00036698,15]
[313973282,1707897038803,-500.0,0.00036698,15]
[313973283,1707897038813,-500.0,0.00036698,15]